bitfinex-derivatives/quotes_BTCF0:USTF0_20251208
["timestamp","ask_amount","ask_price","bid_price","bid_amount"]
[1765213255552,0.48812,89993.0,89992.0,0.00116668]
[1765213255748,0.12732,89982.0,89981.0,0.51804]
[1765213255945,0.05549,89971.0,89970.0,0.36564937]
[1765213256147,0.05549,89971.0,89970.0,0.652175]
[1765213256855,0.12748668,89979.0,89978.0,0.011114]
[1765213257652,0.05549,89974.0,89973.0,0.1341345]
[1765213257854,0.12732,89974.0,89973.0,0.1341345]
[1765213258055,0.12732,89974.0,89970.0,0.52204]
[1765213258056,0.16209,89947.0,89944.0,0.07975407]
[1765213258261,0.16209,89947.0,89944.0,0.01097377]
[1765213258858,0.12732,89947.0,89946.0,0.12313755]
[1765213259043,0.12732,89947.0,89946.0,0.00011755]
[1765213259247,0.48812,89947.0,89946.0,0.01311755]
[1765213259861,0.48812,89947.0,89946.0,0.00711755]
[1765213260064,0.48812,89947.0,89946.0,0.00411755]
[1765213260458,0.12732,89941.0,89940.0,0.00111186]
[1765213260858,0.12732,89941.0,89940.0,0.05584186]
[1765213261263,0.00016668,89955.0,89952.0,0.1341372]
[1765213261264,0.41629,89953.0,89952.0,0.1341372]
[1765213261456,0.41629,89953.0,89952.0,0.12302]
[1765213261766,0.00011282,89953.0,89952.0,0.14729]
[1765213262163,0.3608,89970.0,89969.0,0.1341351]
[1765213262463,0.48812,89970.0,89964.0,0.0111157]
[1765213262665,0.48812,89970.0,89960.0,0.24263057]
[1765213262864,0.3608,89961.0,89960.0,0.36565057]
[1765213263174,0.3608,89961.0,89960.0,0.1341362]
[1765213264067,0.41629,89961.0,89960.0,0.1341362]
[1765213264462,0.05549,89961.0,89960.0,0.1341362]
[1765213265068,0.00016678,89969.0,89963.0,0.0111158]
[1765213266072,0.13214,89964.0,89963.0,0.0763458]
[1765213266274,0.13214,89964.0,89963.0,0.0783458]
[1765213266466,0.06538678,89969.0,89968.0,0.0763452]
[1765213266667,0.06538678,89969.0,89968.0,0.1449252]
[1765213267177,0.00116678,89969.0,89968.0,0.1449252]
[1765213267475,0.00116678,89969.0,89968.0,0.5057252]
[1765213268170,0.00016678,89969.0,89968.0,0.5057252]
[1765213268562,0.00016678,89969.0,89968.0,0.5077252]
[1765213268760,0.00016678,89969.0,89968.0,0.5097252]
[1765213268966,0.42502,89987.0,89986.0,0.144923]
[1765213269263,0.3608,89987.0,89986.0,0.144923]
[1765213270173,0.49294,89987.0,89986.0,0.001]
[1765213270967,0.5040529,89987.0,89986.0,0.001]
[1765213271170,0.13214,89979.0,89978.0,0.00016678]
[1765213271371,0.49294,89979.0,89978.0,0.00016678]
[1765213272566,0.49594,89979.0,89978.0,0.00016678]
[1765213272771,0.49594,89979.0,89978.0,0.00116678]
[1765213273174,0.49594,89979.0,89963.0,0.3608]
[1765213273175,0.17136,89969.0,89968.0,0.0111152]
[1765213273876,0.3638,89979.0,89976.0,0.0111142]
[1765213274181,0.13083,89974.0,89973.0,0.0772046]
[1765213275378,0.13183,89974.0,89973.0,0.06709]
[1765213275573,0.13183,89974.0,89973.0,0.0782046]
[1765213275780,0.001,89974.0,89973.0,0.1451946]
[1765213275973,0.13967587,90024.0,90014.0,0.13308]
[1765213275974,0.00111093,90015.0,90014.0,0.13308]
[1765213276570,0.00111093,90015.0,90014.0,0.22269256]
[1765213276965,0.04053,90035.0,90025.0,0.1441882]
[1765213277164,0.3608,90055.0,90039.0,0.1441865]
[1765213277472,0.36191032,90065.0,90039.0,1.6441865]
[1765213277473,0.13194062,90040.0,90039.0,1.6441865]
[1765213277872,0.13194062,90040.0,90039.0,1.5771965]
[1765213278274,0.13194062,90040.0,90039.0,0.0111065]
[1765213278578,0.06788,90031.0,90030.0,0.00016668]
[1765213278769,0.13083,90031.0,90030.0,1.50016668]
[1765213279077,0.13083,90031.0,90030.0,0.00016668]
[1765213279867,0.49163,90031.0,90030.0,0.00016668]
[1765213280071,0.13083,90013.0,90012.0,0.51852]
[1765213280369,0.13083,90013.0,90012.0,2.01852]
[1765213280681,0.13083,90013.0,90012.0,1.5]
[1765213280877,0.13083,90010.0,90009.0,0.51856]
[1765213281568,0.13083,90001.0,90000.0,0.23168105]
[1765213281880,0.13083,90001.0,90000.0,0.00016668]
[1765213283080,0.13083,90001.0,90000.0,0.06625668]
[1765213283574,0.13083,90001.0,90000.0,0.13324668]
[1765213283774,0.3608,90009.0,90000.0,0.00016668]
[1765213283973,0.3608,90009.0,90000.0,0.00116668]
[1765213284174,0.3608,90009.0,90008.0,0.0111103]
[1765213284380,0.49163,90009.0,90008.0,0.0111103]
[1765213285481,0.49163,90009.0,90008.0,0.0121103]
[1765213287167,0.13083,90009.0,90008.0,0.0121103]
[1765213287372,0.49163,90009.0,90008.0,0.0121103]
[1765213287677,0.49163,90009.0,90008.0,0.0111103]
[1765213287887,0.49163,90009.0,90008.0,0.0121103]
[1765213289072,0.49163,90009.0,90008.0,0.001]
[1765213289576,0.49263,90009.0,90008.0,0.001]
[1765213290078,0.13083,90007.0,90006.0,0.0111105]
[1765213291772,0.13083,90007.0,90006.0,0.0121105]
[1765213292383,0.13183,90007.0,90006.0,0.001]
[1765213292578,0.13183,90007.0,90001.0,0.51832]
[1765213292579,0.141941,90002.0,90001.0,0.51832]
[1765213292769,0.182471,90002.0,90001.0,0.51832]
[1765213293582,0.17136,90002.0,90001.0,0.51832]
[1765213293784,0.17436,90002.0,90001.0,0.51832]
[1765213294580,0.13083,90001.0,90000.0,0.00016668]
[1765213294782,0.13083,89975.0,89974.0,0.0111145]
[1765213295174,0.49163,89975.0,89974.0,0.0111145]
[1765213296788,0.49163,89975.0,89974.0,0.1441945]
[1765213296789,0.3638,89975.0,89974.0,0.1441945]
[1765213297085,0.43168,89975.0,89974.0,0.1441945]
[1765213297396,0.49163,89975.0,89974.0,0.1441945]
[1765213297778,0.49163,89975.0,89974.0,0.1461945]
[1765213298390,0.13083,89975.0,89974.0,0.1461945]
[1765213298989,0.13083,89975.0,89974.0,0.1491945]
[1765213299289,0.13083,89975.0,89974.0,0.1481945]
[1765213299490,0.13083,89975.0,89974.0,0.1471945]
[1765213300394,0.13083,89975.0,89974.0,0.1461945]
[1765213300588,0.13083,89975.0,89974.0,0.1491945]
[1765213301091,0.13083,89975.0,89974.0,0.0822045]
[1765213302082,0.13083,89975.0,89974.0,0.0792045]
[1765213302282,0.13083,89975.0,89974.0,0.0832045]
[1765213303087,0.13083,89975.0,89974.0,0.0822045]
[1765213303294,0.13083,89975.0,89974.0,0.1461945]
[1765213303477,0.13083,89975.0,89974.0,0.1481945]
[1765213306093,0.13083,89975.0,89974.0,0.1471945]
[1765213306294,0.13083,89975.0,89974.0,0.1491945]
[1765213306896,0.13083,89975.0,89974.0,0.1471945]
[1765213307194,0.06813,89980.0,89979.0,0.12492]
[1765213307988,0.06813,89980.0,89979.0,0.1360339]
[1765213308593,0.3608,89994.0,89982.0,0.1360335]
[1765213308781,0.53137,90002.0,90001.0,0.0111112]
[1765213310491,0.53137,90002.0,90001.0,0.0121112]
[1765213311082,0.53137,90002.0,90001.0,0.1370312]
[1765213311282,0.49084,90002.0,90001.0,0.1668219]
[1765213311486,0.42893,90002.0,90001.0,0.1668219]
[1765213311694,0.42893,90002.0,90001.0,0.1678219]
[1765213311894,0.49084,90002.0,90001.0,0.1678219]
[1765213312193,0.49084,90002.0,90001.0,0.0429019]
[1765213312381,0.49084,90002.0,90001.0,0.0131112]
[1765213312588,0.49084,90002.0,90001.0,0.0811812]
[1765213312789,0.49084,90002.0,90001.0,0.1380312]
[1765213313086,0.16925,90010.0,90009.0,0.0791802]
[1765213313684,0.00016668,90011.0,90010.0,0.12492]
[1765213314293,0.06829668,90011.0,90010.0,0.16463878]
[1765213314798,0.13020668,90011.0,90010.0,0.16463878]
[1765213315401,0.13120668,90011.0,90010.0,0.16463878]
[1765213315595,0.13320668,90011.0,90010.0,0.16463878]
[1765213317303,0.13320668,90011.0,90010.0,0.12492]
[1765213319292,0.13004,90010.0,90009.0,0.0111102]
[1765213320292,0.12488,90008.0,90007.0,0.5291904]
[1765213320596,0.12488,90008.0,90007.0,0.6424804]
[1765213320804,0.12488,90008.0,90007.0,0.68219918]
[1765213321595,0.12488,90008.0,90007.0,0.6424804]
[1765213321790,0.12588,90008.0,90007.0,0.6424804]
[1765213321993,0.12588,90008.0,90007.0,0.5291904]
[1765213322190,0.12588,90008.0,90007.0,0.56890918]
[1765213322395,0.12588,90008.0,90007.0,0.5291904]
[1765213322994,0.0121103,90008.0,90007.0,0.0297767]
[1765213323211,0.10988,89998.0,89994.0,0.05957817]
[1765213323494,0.10988,89993.0,89992.0,0.01127888]
[1765213324999,0.10988,89993.0,89992.0,0.00016668]
[1765213325393,0.10988,89993.0,89992.0,0.00316668]
[1765213325595,0.10988,89993.0,89992.0,0.00516668]
[1765213325795,0.10988,89993.0,89992.0,0.00216668]
[1765213325995,0.10988,89984.0,89983.0,0.51804]
[1765213326298,0.83148,89984.0,89983.0,0.51804]
[1765213327307,0.83148,89984.0,89983.0,0.5291534]
[1765213327895,0.83148,89984.0,89983.0,0.5311534]
[1765213328098,0.8425933,89984.0,89983.0,0.002]
[1765213328303,0.83148,89984.0,89983.0,0.0131134]
[1765213328502,0.83148,89984.0,89983.0,0.0121134]
[1765213329395,0.8425933,89984.0,89983.0,0.001]
[1765213329591,0.10988,89976.0,89975.0,0.00016668]
[1765213329796,0.47068,89976.0,89975.0,0.00016668]
[1765213330204,0.47068,89976.0,89975.0,0.01128108]
[1765213330715,0.47068,89976.0,89975.0,0.00016668]
[1765213330900,0.47068,89976.0,89975.0,0.00216668]
[1765213331398,0.1209955,89966.0,89965.0,0.00111155]
[1765213331598,0.4817955,89966.0,89965.0,0.00111155]
[1765213332409,0.48193251,89966.0,89965.0,0.00111155]
[1765213332607,0.10925,89963.0,89962.0,0.0111159]
[1765213332800,0.47005,89963.0,89962.0,0.0111159]
[1765213334001,0.47005,89963.0,89962.0,0.0141159]
[1765213334501,0.47005,89963.0,89962.0,0.1335559]
[1765213334701,0.10925,89963.0,89962.0,0.1335559]
[1765213334900,0.10607046,89963.0,89962.0,0.1335559]
[1765213336911,0.36093701,89966.0,89965.0,0.1245556]
[1765213337504,0.41516701,89966.0,89965.0,0.1245556]
[1765213337707,0.47128701,89966.0,89965.0,0.1245556]
[1765213338014,0.11048701,89966.0,89965.0,0.1295556]
[1765213338210,0.11048701,89966.0,89965.0,0.1315556]
[1765213338402,0.05436701,89966.0,89965.0,0.1315556]
[1765213338802,0.11048701,89966.0,89965.0,0.0181156]
[1765213339203,0.11048701,89966.0,89965.0,0.1315556]
[1765213342014,0.11048701,89966.0,89965.0,0.007]
[1765213342715,0.1214665,89958.0,89957.0,0.00016668]
[1765213342921,0.47115,89958.0,89957.0,0.00016668]
[1765213343811,0.47315,89958.0,89957.0,0.00016668]
[1765213344218,0.47315,89958.0,89940.0,0.00111186]
[1765213344219,0.11035,89941.0,89940.0,0.00111186]
[1765213344613,0.11047492,89941.0,89940.0,0.00111186]
[1765213345314,0.12159352,89941.0,89940.0,0.00111186]
[1765213345516,0.12159352,89941.0,89940.0,0.00411186]
[1765213345726,0.11035,89933.0,89932.0,0.00016678]
[1765213345932,0.47115,89933.0,89932.0,0.00016678]
[1765213346330,0.3608,89933.0,89932.0,0.11360678]
[1765213346526,0.00012492,89941.0,89940.0,0.14574]
[1765213346726,0.05435492,89941.0,89940.0,0.1568587]
[1765213347039,0.11047492,89941.0,89940.0,0.1245587]
[1765213347828,0.11047492,89941.0,89932.0,0.00216678]
[1765213347829,0.11035,89933.0,89932.0,0.00216678]
[1765213348042,0.47115,89933.0,89932.0,0.00216678]
[1765213348345,0.11035,89907.0,89901.0,0.05957817]
[1765213348641,0.03496,89900.0,89894.0,0.0111243]
[1765213348825,0.11035,89895.0,89894.0,0.0111243]
[1765213349226,0.11035,89891.0,89890.0,0.01223738]
[1765213349429,0.11048672,89891.0,89890.0,0.01223738]
[1765213349628,0.11048672,89891.0,89890.0,0.00111248]
[1765213349938,0.14531,89870.0,89869.0,0.03971462]
[1765213350140,0.11035,89869.0,89868.0,0.03971462]
[1765213350330,0.11035,89866.0,89865.0,0.00111279]
[1765213351033,0.11035,89866.0,89865.0,0.11455279]
[1765213351341,0.11335,89869.0,89868.0,0.11344]
[1765213351932,0.003,89869.0,89868.0,0.11344]
[1765213352137,0.05723,89869.0,89868.0,0.11344]
[1765213352730,0.05523,89869.0,89868.0,0.11344]
[1765213353132,0.11035,89867.0,89866.0,0.0111278]
[1765213353336,0.11035,89867.0,89866.0,0.0642678]
[1765213353543,0.11035,89867.0,89866.0,0.1245678]
[1765213354438,0.001,89869.0,89868.0,0.11344]
[1765213354840,8.193e-05,89870.0,89869.0,0.1245675]
[1765213356535,8.193e-05,89870.0,89869.0,0.1255675]
[1765213357139,0.00016688,89878.0,89877.0,0.1245665]
[1765213357345,0.11051688,89878.0,89877.0,0.6431265]
[1765213357546,0.11051688,89878.0,89869.0,0.001]
[1765213357547,0.14531,89870.0,89869.0,0.001]
[1765213358042,0.11035,89866.0,89865.0,0.00111279]
[1765213358841,0.3608,89869.0,89848.0,0.3608]
[1765213358842,0.11035,89852.0,89848.0,0.3608]
[1765213359046,0.11035,89849.0,89848.0,0.3608]
[1765213359343,0.11047849,89849.0,89848.0,0.3608]
[1765213359544,0.11047849,89849.0,89844.0,0.51876]
[1765213359545,0.11035,89847.0,89846.0,1.50010279]
[1765213359846,0.11035,89847.0,89846.0,0.00010279]
[1765213360541,0.11035,89847.0,89846.0,0.05324279]
[1765213360844,0.11035,89847.0,89846.0,0.05624279]
[1765213361434,0.11035,89847.0,89846.0,0.00310279]
[1765213362048,0.11035,89847.0,89846.0,0.00610279]
[1765213363937,0.11035,89847.0,89846.0,0.05924279]
[1765213364142,0.11035,89847.0,89846.0,0.00610279]
[1765213364754,0.11035,89847.0,89846.0,0.00324789]
[1765213366251,0.11035,89847.0,89846.0,0.003]
[1765213367253,0.11021,89841.0,89840.0,0.0011131]
[1765213367550,0.47101,89841.0,89840.0,0.0011131]
[1765213368457,0.47101,89841.0,89840.0,0.0031131]
[1765213368645,0.83181,89841.0,89840.0,0.0031131]
[1765213370247,0.83181,89841.0,89840.0,0.0142442]
[1765213370646,0.83181,89841.0,89840.0,0.1230842]
[1765213370853,0.47101,89841.0,89840.0,0.1230842]
[1765213371554,0.47101,89841.0,89840.0,0.0709342]
[1765213374647,0.47101,89841.0,89840.0,0.0031131]
[1765213376455,0.48101,89841.0,89840.0,0.0021131]
[1765213378159,0.48101,89841.0,89840.0,3.1e-06]
[1765213378358,0.11021,89832.0,89831.0,0.0111321]
[1765213378560,0.4710998,89832.0,89831.0,0.0111321]
[1765213379556,0.11021,89819.0,89818.0,0.0111338]
[1765213379757,0.47101,89819.0,89818.0,0.0111338]
[1765213380255,0.121344,89816.0,89815.0,0.00111341]
[1765213380462,0.47101,89816.0,89815.0,0.00111341]
[1765213380661,0.47101,89816.0,89815.0,0.05780341]
[1765213380957,0.00016698,89827.0,89815.0,0.05780341]
[1765213380958,0.00016698,89827.0,89826.0,0.1199728]
[1765213381557,0.05851698,89827.0,89826.0,0.1199728]
[1765213381863,0.00016698,89827.0,89826.0,0.1199728]
[1765213382050,0.11547717,89827.0,89826.0,0.1199728]
[1765213382253,0.00526717,89827.0,89826.0,0.1199728]
[1765213382453,0.06361717,89827.0,89826.0,0.1199728]
[1765213382750,0.00526717,89827.0,89826.0,0.1199728]
[1765213384965,0.05666717,89827.0,89826.0,0.1199728]
[1765213385459,0.10423,89819.0,89816.0,0.03971462]
[1765213385661,0.10423,89816.0,89815.0,0.01224751]
[1765213386053,0.10423,89816.0,89815.0,0.06250751]
[1765213386462,0.10423,89816.0,89815.0,0.11285751]
[1765213387051,0.3608,89819.0,89818.0,0.1117438]
[1765213387252,0.3608,89846.0,89845.0,0.0111305]
[1765213387568,0.48870571,89846.0,89845.0,0.0111305]
[1765213387865,0.48870571,89846.0,89845.0,0.1117405]
[1765213388162,0.38447571,89846.0,89845.0,0.1117405]
[1765213388362,0.3845387,89846.0,89845.0,0.1117405]
[1765213388566,0.36086299,89846.0,89845.0,0.1117405]
[1765213388769,6.299e-05,89846.0,89845.0,0.4725405]
[1765213388971,0.01006299,89846.0,89845.0,0.4735405]
[1765213389360,0.00016698,89854.0,89853.0,0.1117395]
[1765213389560,0.00016698,89854.0,89853.0,0.9919395]
[1765213390156,0.00016698,89854.0,89853.0,0.62001]
[1765213390468,0.10439698,89854.0,89853.0,0.62001]
[1765213390676,0.05156698,89854.0,89853.0,0.62301]
[1765213391055,0.00016698,89854.0,89853.0,0.62301]
[1765213392772,0.11287628,89854.0,89853.0,0.5224]
[1765213393075,0.11287628,89854.0,89853.0,0.003]
[1765213393076,0.10174698,89854.0,89853.0,0.003]
[1765213393976,0.12542892,89854.0,89853.0,0.003]
[1765213394173,0.12542892,89854.0,89853.0,0.001]
[1765213394483,0.12742892,89854.0,89853.0,0.001]
[1765213394867,0.09938,89842.0,89841.0,0.51932]
[1765213395067,0.46018,89842.0,89841.0,0.51932]
[1765213395575,0.09938,89841.0,89840.0,0.0122441]
[1765213396366,0.09938,89841.0,89840.0,0.0011131]
[1765213396579,0.10138,89841.0,89840.0,0.0011131]
[1765213396765,0.10138,89841.0,89840.0,0.0492531]
[1765213396969,0.1125109,89841.0,89840.0,0.0011131]
[1765213397176,0.4733109,89841.0,89840.0,0.0011131]
[1765213397362,0.4733109,89841.0,89840.0,0.0021131]
[1765213397968,0.09938,89838.0,89837.0,0.00016698]
[1765213398165,0.09938,89838.0,89837.0,0.01129838]
[1765213399167,0.10038,89838.0,89837.0,0.01129838]
[1765213399481,0.10038,89838.0,89837.0,0.00016698]
[1765213399771,0.10038,89838.0,89837.0,0.00116698]
[1765213399973,0.10038,89838.0,89837.0,0.09832698]
[1765213400175,0.001,89838.0,89837.0,0.09832698]
[1765213400369,0.001,89838.0,89837.0,0.09732698]
[1765213400771,0.41,89841.0,89840.0,0.09716]
[1765213400970,0.46018,89841.0,89840.0,0.09716]
[1765213401473,0.39051,89859.0,89847.0,0.04814]
[1765213401474,0.12909,89848.0,89847.0,0.04814]
[1765213401676,0.09938,89848.0,89847.0,0.09716]
[1765213402381,0.39051,89859.0,89853.0,0.1082895]
[1765213402677,0.09954698,89854.0,89853.0,0.09716]
[1765213403277,0.00016698,89854.0,89853.0,0.09716]
[1765213403672,0.01316698,89854.0,89853.0,0.09716]
[1765213404181,0.02116698,89854.0,89853.0,0.09816]
[1765213404884,0.46018,89878.0,89877.0,0.04814]
[1765213405672,0.41,89878.0,89877.0,0.09716]
[1765213405875,0.41,89878.0,89877.0,0.1082865]
[1765213406181,0.3608,89878.0,89877.0,0.1082865]
[1765213406769,0.09938,89884.0,89883.0,0.04814]
[1765213406971,0.09938,89884.0,89883.0,0.09716]
[1765213407969,0.00016698,89886.0,89885.0,0.09716]
[1765213408172,0.3608,89887.0,89885.0,0.09716]
[1765213408173,0.35550151,89887.0,89886.0,0.1082854]
[1765213408377,0.3608,89895.0,89894.0,0.1082844]
[1765213408879,0.0111218,89916.0,89894.0,0.09716]
[1765213409072,0.46018,89910.0,89909.0,0.09716]
[1765213409571,0.00016688,89918.0,89917.0,0.09716]
[1765213409572,0.04936688,89918.0,89917.0,0.09716]
[1765213409771,0.00016688,89918.0,89917.0,0.09716]
[1765213410782,0.3608,89930.0,89929.0,0.09716]
[1765213410980,0.3608,89930.0,89929.0,0.1082801]
[1765213411173,0.3608,89930.0,89929.0,0.09716]
[1765213411683,0.02971,89936.0,89930.0,0.0592599]
[1765213411684,0.09938,89931.0,89930.0,0.0592599]
[1765213411873,0.09938,89931.0,89930.0,0.1082799]
[1765213412277,0.09938,89931.0,89930.0,0.09716]
[1765213412584,0.3608,89937.0,89930.0,0.1082799]
[1765213413080,0.09938,89928.0,89927.0,0.34072307]
[1765213413278,0.09938,89928.0,89927.0,0.1082803]
[1765213413479,0.004,89930.0,89929.0,0.09716]
[1765213413674,0.3608,89937.0,89930.0,0.0111199]
[1765213413880,0.0492,89931.0,89930.0,0.09816]
[1765213414082,0.09938,89931.0,89930.0,0.04914]
[1765213414578,0.09938,89931.0,89930.0,0.04814]
[1765213414979,0.3608,89937.0,89930.0,0.09716]
[1765213415181,0.46018,89937.0,89936.0,0.09716]
[1765213415372,0.46018,89937.0,89936.0,0.04814]
[1765213415978,0.46018,89937.0,89927.0,0.23244277]
[1765213416177,0.0552,89931.0,89930.0,0.09816]
[1765213416378,0.10538,89931.0,89930.0,0.001]
[1765213416884,0.09938,89926.0,89925.0,0.10816445]
[1765213417087,0.09938,89926.0,89925.0,0.05914445]
[1765213417281,0.09938,89926.0,89925.0,0.01100445]
[1765213417484,0.09938,89923.0,89922.0,0.00016688]
[1765213417879,0.09938,89923.0,89922.0,0.01134185]
[1765213418081,0.09938,89923.0,89922.0,0.10850185]
[1765213418278,0.09938,89923.0,89922.0,0.11962275]
[1765213418586,0.09938,89923.0,89922.0,0.05948185]
[1765213418781,0.09938,89923.0,89922.0,0.06548185]
[1765213419004,0.3608,89926.0,89925.0,0.09716]
[1765213419184,0.41,89926.0,89925.0,0.09716]
[1765213419379,0.3608,89926.0,89925.0,0.09716]
[1765213419980,0.412,89926.0,89925.0,0.09716]
[1765213420184,0.09938,89923.0,89922.0,0.02846275]
[1765213420584,0.09938,89923.0,89922.0,0.01734185]
[1765213420791,0.09938,89923.0,89922.0,0.00616688]
[1765213421183,0.09938,89923.0,89922.0,0.00016688]
[1765213421884,0.09938,89923.0,89922.0,0.05430688]
[1765213422081,0.09938,89923.0,89922.0,0.10332688]
[1765213422280,0.10038,89923.0,89922.0,0.10332688]
[1765213423579,0.0502,89923.0,89922.0,0.10332688]
[1765213424189,0.09574,89923.0,89922.0,0.05430688]
[1765213424580,0.09574,89923.0,89922.0,0.00616688]
[1765213429789,0.09574,89923.0,89922.0,0.05501688]
[1765213432792,0.001,89923.0,89922.0,0.09977688]
[1765213434096,0.3608,89937.0,89936.0,0.1047292]
[1765213434097,0.45625,89937.0,89936.0,0.1047292]
[1765213434291,0.3608,89955.0,89954.0,0.09361]
[1765213434593,0.00111155,89965.0,89964.0,0.09361]
[1765213434796,0.09656155,89965.0,89964.0,0.0599657]
[1765213434989,0.00111155,89965.0,89964.0,0.1047257]
[1765213435600,5e-08,89965.0,89964.0,0.1047257]
[1765213436097,5e-08,89965.0,89960.0,0.02688]
[1765213436098,0.40930228,89983.0,89982.0,0.1047235]
[1765213436485,0.05102124,89990.0,89989.0,0.1047226]
[1765213436689,0.09656124,89990.0,89989.0,0.1047226]
[1765213437292,0.00111124,89990.0,89989.0,0.1047226]
[1765213437987,0.00111124,89990.0,89989.0,1.61609579]
[1765213438186,0.00010597,89998.0,89997.0,0.1047217]
[1765213438400,0.00010597,89998.0,89997.0,0.6237217]
[1765213438797,0.05013242,90009.0,90008.0,0.1047203]
[1765213439502,0.09567242,90009.0,90008.0,0.1047203]
[1765213439696,0.04917242,90009.0,90008.0,0.1047203]
[1765213439892,0.09465744,90009.0,90008.0,0.1047203]
[1765213440799,0.10265744,90009.0,90008.0,0.1057203]
[1765213441391,0.10265744,90009.0,90008.0,0.001]
[1765213442098,0.09604,90000.0,89999.0,0.00016669]
[1765213442297,0.45684,90000.0,89999.0,0.00016669]
[1765213442799,0.3608,90000.0,89999.0,0.09627669]
[1765213442986,0.008,90009.0,90008.0,0.1072203]
[1765213443605,0.3608,90019.0,90018.0,0.1072191]
[1765213443802,0.40975,90019.0,90018.0,0.1072191]
[1765213443999,0.45684,90019.0,90018.0,0.1072191]
[1765213444600,0.3608,90019.0,90018.0,0.1072191]
[1765213445000,0.45684,90030.0,90029.0,0.09611]
[1765213445195,0.45684,90030.0,90025.0,0.0111081]
[1765213445196,0.09604,90026.0,90025.0,0.0111081]
[1765213445591,0.09604,90026.0,90025.0,0.1072181]
[1765213445801,0.3608,90030.0,90029.0,0.09611]
[1765213446107,0.3608,90038.0,90037.0,0.09611]
[1765213446396,0.04895,90039.0,90038.0,0.0111066]
[1765213446597,0.02851,90035.0,90029.0,0.29130589]
[1765213446797,0.09604,90030.0,90029.0,0.29130589]
[1765213447008,0.04895,90026.0,90025.0,0.1072181]
[1765213447301,0.10304,90030.0,90029.0,0.04903]
[1765213447494,0.10304,90030.0,90024.0,0.0111082]
[1765213447701,0.007,90030.0,90020.0,0.70130258]
[1765213447900,0.007,90030.0,90021.0,0.6263387]
[1765213447901,0.04895,90022.0,90021.0,0.6263387]
[1765213448099,0.09604,90026.0,90025.0,0.05003]
[1765213448701,0.09604,90026.0,90025.0,0.09711]
[1765213449803,0.09604,90021.0,90020.0,0.00116669]
[1765213450103,0.09604,90021.0,90020.0,0.52016669]
[1765213450600,0.09604,90021.0,90020.0,0.51916669]
[1765213451396,0.10204,90021.0,90020.0,0.52016669]
[1765213453700,0.10204,90021.0,90020.0,0.61362669]
[1765213453900,0.10204,90021.0,90020.0,0.56567669]
[1765213454105,0.10204,90021.0,90020.0,0.52016669]
[1765213455199,0.10204,90021.0,90020.0,0.00116669]
[1765213455395,0.09204,90006.0,90005.0,0.61226]
[1765213455996,0.02813,90013.0,90005.0,0.5188]
[1765213456196,0.12017,90013.0,90012.0,0.04551]
[1765213456400,0.3608,90015.0,90014.0,0.09346]
[1765213456998,0.00016669,90022.0,90013.0,0.02797]
[1765213457607,0.09204,90021.0,90020.0,0.0566187]
[1765213457903,0.09204,90021.0,90020.0,0.0111087]
[1765213458103,0.09204,90021.0,90020.0,0.0566187]
[1765213458304,0.09204,90021.0,90020.0,0.1045687]
[1765213458305,0.04656,90021.0,90020.0,0.1045687]
[1765213459100,0.09204,90021.0,90020.0,0.0566187]
[1765213459300,0.04548,90017.0,90016.0,0.0111093]
[1765213459500,0.09204,90017.0,90016.0,0.0111093]
[1765213460406,0.007,90021.0,90012.0,0.0111097]
[1765213460603,0.12017,90013.0,90012.0,0.0111097]
[1765213460905,0.09204,90012.0,90011.0,0.51864]
[1765213462301,0.09204,90012.0,90011.0,0.6121]
[1765213463005,0.09204,90012.0,90011.0,0.6181]
[1765213463200,0.11622873,90012.0,90011.0,0.6181]
[1765213463401,0.11622873,90012.0,90011.0,0.52464]
[1765213463800,0.11722873,90012.0,90011.0,0.52464]
[1765213465605,0.11722873,90012.0,90011.0,0.57015]
[1765213466316,0.17706481,90012.0,90011.0,0.6181]
[1765213466710,0.11722873,90012.0,90011.0,0.006]
[1765213467104,0.1031508,90004.0,89981.0,0.3608]
[1765213467306,0.09204,89994.0,89986.0,0.01129998]
[1765213467515,0.47702873,89994.0,89987.0,0.0111128]
[1765213468011,0.47702873,89994.0,89991.0,0.0111123]
[1765213469219,0.47702873,89994.0,89993.0,0.00112459]
[1765213469416,0.47702873,89994.0,89993.0,0.01012459]
[1765213469813,0.47702873,89994.0,89993.0,0.00112459]
[1765213470013,0.47802873,89994.0,89993.0,0.00512459]
[1765213471217,0.49213641,89994.0,89993.0,0.09858459]
[1765213471517,0.38598873,89994.0,89993.0,0.09658459]
[1765213471708,0.38498873,89994.0,89993.0,0.09658459]
[1765213471911,0.02518873,89994.0,89993.0,0.09658459]
[1765213472516,0.00016669,90002.0,90001.0,0.09346]
[1765213472715,0.00016669,90002.0,90001.0,0.1045712]
[1765213473511,0.40736,90019.0,90018.0,0.1045691]
[1765213473815,0.09204,90029.0,90028.0,0.0111077]
[1765213474008,0.11628334,90029.0,90028.0,0.1045677]
[1765213474205,0.02424334,90029.0,90028.0,0.1045677]
[1765213474809,0.02424334,90029.0,90028.0,0.11577833]
[1765213475521,0.04124334,90029.0,90028.0,0.11677833]
[1765213475827,0.017,90029.0,90028.0,0.11677833]
[1765213476315,0.0008232,90029.0,90028.0,0.11677833]
[1765213476714,0.00016669,90038.0,90037.0,0.1045667]
[1765213476912,0.00016669,90038.0,90037.0,0.4653667]
[1765213477507,2e-08,90040.0,90039.0,0.09346]
[1765213477709,0.09315032,90065.0,90064.0,0.04551]
[1765213478023,0.09204,90057.0,90056.0,0.0566143]
[1765213478215,0.11611923,90057.0,90056.0,0.0566143]
[1765213478413,0.11611923,90057.0,90056.0,0.1045643]
[1765213479224,0.3608,90059.0,90058.0,0.09346]
[1765213479419,0.47690265,90059.0,90058.0,0.04551]
[1765213479734,0.45284,90059.0,90058.0,0.09346]
[1765213480524,0.12017,90057.0,90056.0,0.0121043]
[1765213480718,0.12017,90057.0,90056.0,0.0111043]
[1765213480926,0.02813,90057.0,90052.0,0.0111048]
[1765213481219,0.02813,90057.0,90047.0,0.00016657]
[1765213481220,0.09204,90048.0,90047.0,0.00016657]
[1765213481909,0.09204,90048.0,90047.0,0.09362657]
[1765213482515,0.09704,90048.0,90047.0,0.09362657]
[1765213482715,0.05156,90048.0,90047.0,0.09362657]
[1765213482910,0.005,90048.0,90047.0,0.09362657]